[Event "*** SCC Grand Prix: Titled Tuesday Blitz"]
[Site "Chess.com"]
[Date "2020.09.08"]
[Round "8"]
[White "Sofiia_Hryzlova"]
[Black "Zarinur"]
[Result "0-1"]
[WhiteElo "2266"]
[BlackElo "2135"]
[TimeControl "180+1"]
[EndTime "11:36:57 PDT"]
[Termination "Zarinur won by resignation"]

1. c4 {[%clk 0:03:00.9]} 1... e5 {[%clk 0:02:59.2]} 2. Nc3 {[%clk 0:02:59.2]}
2... Bb4 {[%clk 0:02:58.1]} 3. Nd5 {[%clk 0:02:58.4]} 3... Be7 {[%clk
0:02:56.1]} 4. Nf3 {[%clk 0:02:57.8]} 4... d6 {[%clk 0:02:53.1]} 5. d4 {[%clk
0:02:54.6]} 5... e4 {[%clk 0:02:47.4]} 6. Nd2 {[%clk 0:02:54.3]} 6... f5 {[%clk
0:02:47.1]} 7. Nb1 {[%clk 0:02:51.2]} 7... Nf6 {[%clk 0:02:43.3]} 8. Nxe7 {[%clk
0:02:47.2]} 8... Qxe7 {[%clk 0:02:42.2]} 9. Nc3 {[%clk 0:02:46.4]} 9... Be6
{[%clk 0:02:36]} 10. Bg5 {[%clk 0:02:37.9]} 10... h6 {[%clk 0:02:19]} 11. Bd2
{[%clk 0:02:27.4]} 11... O-O {[%clk 0:02:09.3]} 12. e3 {[%clk 0:02:24.2]} 12...
Nbd7 {[%clk 0:01:41.5]} 13. Be2 {[%clk 0:02:21.3]} 13... d5 {[%clk 0:01:29.4]}
14. cxd5 {[%clk 0:02:09.8]} 14... Nxd5 {[%clk 0:01:26.2]} 15. Nxd5 {[%clk
0:02:03]} 15... Bxd5 {[%clk 0:01:27.1]} 16. Qc2 {[%clk 0:01:58.8]} 16... c6
{[%clk 0:01:24.7]} 17. h3 {[%clk 0:01:57.5]} 17... Nf6 {[%clk 0:01:19.4]} 18. f4
{[%clk 0:01:40.1]} 18... exf3 {[%clk 0:01:16.9]} 19. gxf3 {[%clk 0:01:40.2]}
19... f4 {[%clk 0:00:59.9]} 20. e4 {[%clk 0:01:30]} 20... Nxe4 {[%clk
0:00:58.1]} 21. fxe4 {[%clk 0:01:23.9]} 21... Bxe4 {[%clk 0:00:59]} 22. Qb3+
{[%clk 0:01:23.8]} 22... Bd5 {[%clk 0:00:58.4]} 23. Bb4 {[%clk 0:01:14.7]} 23...
Qh4+ {[%clk 0:00:28.4]} 24. Kd2 {[%clk 0:01:09.2]} 24... Rfe8 {[%clk 0:00:26.6]}
25. Qd3 {[%clk 0:00:57.4]} 25... Re3 {[%clk 0:00:17.1]} 26. Qg6 {[%clk
0:00:49.3]} 26... Bxh1 {[%clk 0:00:12.1]} 27. Rxh1 {[%clk 0:00:41]} 27... Qf2
{[%clk 0:00:11.6]} 28. Re1 {[%clk 0:00:36.2]} 28... f3 {[%clk 0:00:11]} 29. Qg4
{[%clk 0:00:29.7]} 29... Rxe2+ {[%clk 0:00:10.5]} 30. Rxe2 {[%clk 0:00:29]}
30... Qxe2+ {[%clk 0:00:10.6]} 31. Kc3 {[%clk 0:00:29.5]} 31... Qe3+ {[%clk
0:00:08.9]} 32. Kc2 {[%clk 0:00:28.2]} 32... f2 {[%clk 0:00:09.3]} 33. Qf5
{[%clk 0:00:23.2]} 33... Qe2+ {[%clk 0:00:08.3]} 34. Bd2 {[%clk 0:00:20.2]}
34... f1=Q {[%clk 0:00:09.2]} 35. Qg6 {[%clk 0:00:20]} 35... Qff2 {[%clk
0:00:08.3]} 36. Kb3 {[%clk 0:00:14]} 36... Qxd2 {[%clk 0:00:08.2]} 37. Qe6+
{[%clk 0:00:14.6]} 37... Kh8 {[%clk 0:00:07.8]} 38. Qc4 {[%clk 0:00:15.5]} 38...
Qfe3+ {[%clk 0:00:06.5]} 39. Ka4 {[%clk 0:00:15.5]} 39... Qdd3 {[%clk
0:00:07.4]} 40. Qf7 {[%clk 0:00:14.2]} 40... Qdxd4+ {[%clk 0:00:07.8]} 41. b4
{[%clk 0:00:14.2]} 41... Qd1+ {[%clk 0:00:05.6]} 42. Ka5 {[%clk 0:00:12.4]}
42... Qe5+ {[%clk 0:00:05.3]} 43. Qd5 {[%clk 0:00:10]} 43... Qexd5+ {[%clk
0:00:05.3]} 0-1

[Event "*** SCC Grand Prix: Titled Tuesday Blitz"]
[Site "Chess.com"]
[Date "2020.09.08"]
[Round "8"]
[White "MFBerna"]
[Black "StellarChessPro"]
[Result "1-0"]
[WhiteElo "2458"]
[BlackElo "2273"]
[TimeControl "180+1"]
[EndTime "11:36:58 PDT"]
[Termination "MFBerna won by checkmate"]

1. c4 {[%clk 0:03:00.7]} 1... b6 {[%clk 0:02:58.8]} 2. Nf3 {[%clk 0:03:00.4]}
2... Bb7 {[%clk 0:02:59.7]} 3. b3 {[%clk 0:03:00.5]} 3... g6 {[%clk 0:02:59.6]}
4. Bb2 {[%clk 0:03:00.8]} 4... Nf6 {[%clk 0:03:00.5]} 5. e3 {[%clk 0:02:58.8]}
5... Bg7 {[%clk 0:03:00.8]} 6. Be2 {[%clk 0:02:59.2]} 6... O-O {[%clk
0:03:01.6]} 7. O-O {[%clk 0:02:59.3]} 7... d6 {[%clk 0:03:02.5]} 8. d4 {[%clk
0:02:58.1]} 8... Nbd7 {[%clk 0:03:02.4]} 9. Nbd2 {[%clk 0:02:58.3]} 9... Re8
{[%clk 0:03:02.6]} 10. Rc1 {[%clk 0:02:56.4]} 10... e5 {[%clk 0:03:00.8]} 11.
dxe5 {[%clk 0:02:54.3]} 11... Nxe5 {[%clk 0:03:00.6]} 12. Nxe5 {[%clk
0:02:53.8]} 12... dxe5 {[%clk 0:03:01.4]} 13. c5 {[%clk 0:02:48.2]} 13... Bd5
{[%clk 0:02:31.7]} 14. Bc4 {[%clk 0:02:41.8]} 14... Bxc4 {[%clk 0:02:29.8]} 15.
Nxc4 {[%clk 0:02:38.5]} 15... e4 {[%clk 0:02:23.3]} 16. Qe2 {[%clk 0:02:27]}
16... Qe7 {[%clk 0:02:20.9]} 17. Ba3 {[%clk 0:02:08.4]} 17... Qe6 {[%clk
0:02:19.1]} 18. Rfd1 {[%clk 0:02:04.9]} 18... h5 {[%clk 0:01:55.4]} 19. h3
{[%clk 0:02:04.5]} 19... Red8 {[%clk 0:01:54.4]} 20. Rxd8+ {[%clk 0:01:51.9]}
20... Rxd8 {[%clk 0:01:54.4]} 21. Rd1 {[%clk 0:01:52.4]} 21... Rd5 {[%clk
0:01:52.6]} 22. cxb6 {[%clk 0:01:49.2]} 22... axb6 {[%clk 0:01:49]} 23. Bb2
{[%clk 0:01:47.4]} 23... Qd7 {[%clk 0:01:39]} 24. Rxd5 {[%clk 0:01:47]} 24...
Qxd5 {[%clk 0:01:37.1]} 25. Qd2 {[%clk 0:01:41]} 25... Qc6 {[%clk 0:01:14]} 26.
Qd8+ {[%clk 0:01:31.8]} 26... Kh7 {[%clk 0:01:13.5]} 27. Ne5 {[%clk 0:01:13.9]}
27... Qc2 {[%clk 0:01:04.4]} 28. Bd4 {[%clk 0:01:13.7]} 28... Qd1+ {[%clk
0:01:01.7]} 29. Kh2 {[%clk 0:01:12]} 29... c5 {[%clk 0:01:02.1]} 30. Nxf7 {[%clk
0:00:55.7]} 30... cxd4 {[%clk 0:01:00.1]} 31. Ng5+ {[%clk 0:00:54.2]} 31... Kh6
{[%clk 0:01:00.9]} 32. Nf7+ {[%clk 0:00:51.2]} 32... Kh7 {[%clk 0:01:01.2]} 33.
exd4 {[%clk 0:00:31.9]} 33... Qd2 {[%clk 0:00:54.3]} 34. d5 {[%clk 0:00:26.7]}
34... h4 {[%clk 0:00:35]} 35. Qxb6 {[%clk 0:00:14.7]} 35... Qf4+ {[%clk
0:00:32.4]} 36. Kg1 {[%clk 0:00:13.4]} 36... Nh5 {[%clk 0:00:31.5]} 37. Qe6
{[%clk 0:00:10.7]} 37... e3 {[%clk 0:00:27.7]} 38. fxe3 {[%clk 0:00:05.4]} 38...
Qg3 {[%clk 0:00:26.9]} 39. d6 {[%clk 0:00:03]} 39... Qe1+ {[%clk 0:00:26.8]} 40.
Kh2 {[%clk 0:00:02.9]} 40... Qg3+ {[%clk 0:00:25.3]} 41. Kg1 {[%clk 0:00:02.9]}
41... Qe1+ {[%clk 0:00:15.7]} 42. Kh2 {[%clk 0:00:03.8]} 42... Ng3 {[%clk
0:00:15.6]} 43. Ng5+ {[%clk 0:00:03.3]} 43... Kh6 {[%clk 0:00:16.3]} 44. Nf7+
{[%clk 0:00:03.6]} 44... Kh5 {[%clk 0:00:14.1]} 45. Qg4# {[%clk 0:00:03.3]} 1-0

[Event "*** SCC Grand Prix: Titled Tuesday Blitz"]
[Site "Chess.com"]
[Date "2020.09.08"]
[Round "8"]
[White "GelmanAlexander"]
[Black "maxip32"]
[Result "1-0"]
[WhiteElo "2512"]
[BlackElo "2381"]
[TimeControl "180+1"]
[EndTime "11:36:59 PDT"]
[Termination "GelmanAlexander won by resignation"]

1. d4 {[%clk 0:03:00.9]} 1... Nf6 {[%clk 0:02:59.9]} 2. Nc3 {[%clk 0:03:01]}
2... g6 {[%clk 0:02:54.4]} 3. e4 {[%clk 0:03:00.4]} 3... d6 {[%clk 0:02:54.9]}
4. f4 {[%clk 0:03:00.5]} 4... Bg7 {[%clk 0:02:55.8]} 5. Nf3 {[%clk 0:03:00.9]}
5... c5 {[%clk 0:02:36.9]} 6. Bb5+ {[%clk 0:02:59.8]} 6... Bd7 {[%clk
0:02:35.4]} 7. e5 {[%clk 0:02:59.8]} 7... Ng8 {[%clk 0:02:20.6]} 8. dxc5 {[%clk
0:02:15.9]} 8... Bxb5 {[%clk 0:02:16.1]} 9. Nxb5 {[%clk 0:02:15.8]} 9... Qa5+
{[%clk 0:02:15.6]} 10. Nc3 {[%clk 0:02:15.6]} 10... Qxc5 {[%clk 0:02:14.1]} 11.
Qe2 {[%clk 0:02:15.1]} 11... Nh6 {[%clk 0:02:06.8]} 12. Be3 {[%clk 0:02:14.9]}
12... Qb4 {[%clk 0:02:07]} 13. O-O-O {[%clk 0:02:14.5]} 13... O-O {[%clk
0:01:28.3]} 14. Nd5 {[%clk 0:02:12.6]} 14... Qa5 {[%clk 0:01:26.5]} 15. Nxe7+
{[%clk 0:02:06.1]} 15... Kh8 {[%clk 0:01:25.7]} 16. Kb1 {[%clk 0:01:52]} 16...
dxe5 {[%clk 0:01:20.7]} 17. fxe5 {[%clk 0:01:52.5]} 17... Ng4 {[%clk 0:01:17.1]}
18. Bd4 {[%clk 0:01:31.2]} 18... Nc6 {[%clk 0:01:05.7]} 19. Nxc6 {[%clk
0:01:30.4]} 19... bxc6 {[%clk 0:01:06.6]} 20. e6 {[%clk 0:01:26.3]} 20... f6
{[%clk 0:00:24.8]} 21. h3 {[%clk 0:01:00.8]} 21... Nh6 {[%clk 0:00:23.9]} 22.
Bc3 {[%clk 0:01:00]} 22... Qc5 {[%clk 0:00:20.5]} 23. Rhe1 {[%clk 0:00:56.1]}
23... Rfe8 {[%clk 0:00:20.5]} 24. g4 {[%clk 0:00:55.2]} 24... Rab8 {[%clk
0:00:20.5]} 25. Ka1 {[%clk 0:00:50.2]} 25... Ng8 {[%clk 0:00:15.4]} 26. a3
{[%clk 0:00:47.4]} 26... Ne7 {[%clk 0:00:14.3]} 27. Rd7 {[%clk 0:00:45.3]} 27...
Nd5 {[%clk 0:00:13.8]} 28. Bd4 {[%clk 0:00:44]} 28... Qa5 {[%clk 0:00:13.2]} 29.
g5 {[%clk 0:00:30.2]} 29... Nf4 {[%clk 0:00:12.4]} 30. Qh2 {[%clk 0:00:29.5]}
30... Nxe6 {[%clk 0:00:12.2]} 31. gxf6 {[%clk 0:00:25.9]} 31... Nxd4 {[%clk
0:00:02.1]} 32. fxg7+ {[%clk 0:00:24.9]} 32... Kg8 {[%clk 0:00:01.6]} 33. Rxe8+
{[%clk 0:00:24.5]} 33... Rxe8 {[%clk 0:00:02.5]} 34. Nxd4 {[%clk 0:00:22.5]}
34... Qe1+ {[%clk 0:00:02.2]} 35. Ka2 {[%clk 0:00:22.7]} 35... c5 {[%clk
0:00:03.1]} 36. Nb3 {[%clk 0:00:18]} 36... Qe6 {[%clk 0:00:03.3]} 37. Qd6 {[%clk
0:00:18]} 37... Qxd6 {[%clk 0:00:03]} 38. Rxd6 {[%clk 0:00:18.2]} 38... c4
{[%clk 0:00:03.9]} 39. Nd4 {[%clk 0:00:17.4]} 39... Kxg7 {[%clk 0:00:04.8]} 40.
Rd7+ {[%clk 0:00:17.9]} 40... Kh6 {[%clk 0:00:04.9]} 41. Rxa7 {[%clk 0:00:18]}
41... Re3 {[%clk 0:00:05.1]} 42. a4 {[%clk 0:00:16.7]} 42... Rxh3 {[%clk
0:00:05]} 43. a5 {[%clk 0:00:17.2]} 43... c3 {[%clk 0:00:05.8]} 44. b3 {[%clk
0:00:16.2]} 44... Rh4 {[%clk 0:00:06.7]} 45. Nb5 {[%clk 0:00:15.7]} 45... Rb4
{[%clk 0:00:06.5]} 46. Nxc3 {[%clk 0:00:15.8]} 46... g5 {[%clk 0:00:07.4]} 47.
Ra6+ {[%clk 0:00:14.5]} 47... Kh5 {[%clk 0:00:06.9]} 48. Rb6 {[%clk 0:00:15.4]}
48... Rd4 {[%clk 0:00:06.6]} 49. a6 {[%clk 0:00:15.9]} 49... g4 {[%clk
0:00:06.6]} 50. a7 {[%clk 0:00:16.4]} 1-0

[Event "*** SCC Grand Prix: Titled Tuesday Blitz"]
[Site "Chess.com"]
[Date "2020.09.08"]
[Round "8"]
[White "nau64"]
[Black "IANOV0007"]
[Result "1/2-1/2"]
[WhiteElo "2309"]
[BlackElo "2418"]
[TimeControl "180+1"]
[EndTime "11:36:59 PDT"]
[Termination "Game drawn - insufficient material"]

1. d4 {[%clk 0:03:00.9]} 1... d6 {[%clk 0:02:59.6]} 2. c4 {[%clk 0:02:57.6]}
2... g6 {[%clk 0:02:59.4]} 3. Nc3 {[%clk 0:02:57.1]} 3... Bg7 {[%clk 0:02:59.4]}
4. Nf3 {[%clk 0:02:54.8]} 4... Bg4 {[%clk 0:02:57.7]} 5. h3 {[%clk 0:02:41.9]}
5... Bxf3 {[%clk 0:02:56.7]} 6. exf3 {[%clk 0:02:42.8]} 6... e6 {[%clk
0:02:56.5]} 7. Be3 {[%clk 0:02:42.4]} 7... Ne7 {[%clk 0:02:56.3]} 8. Qd2 {[%clk
0:02:40.6]} 8... Nf5 {[%clk 0:02:53.8]} 9. f4 {[%clk 0:02:38.2]} 9... d5 {[%clk
0:02:52.2]} 10. cxd5 {[%clk 0:02:28.9]} 10... exd5 {[%clk 0:02:51.4]} 11. Be2
{[%clk 0:02:21.6]} 11... c6 {[%clk 0:02:49]} 12. O-O {[%clk 0:02:18.8]} 12...
O-O {[%clk 0:02:47.6]} 13. g4 {[%clk 0:01:57.7]} 13... Nxe3 {[%clk 0:02:46.9]}
14. fxe3 {[%clk 0:01:56.4]} 14... Nd7 {[%clk 0:02:43.9]} 15. Bd3 {[%clk
0:01:54.3]} 15... Qh4 {[%clk 0:02:37.5]} 16. Kg2 {[%clk 0:01:52.3]} 16... Rae8
{[%clk 0:02:36.3]} 17. Rae1 {[%clk 0:01:52.1]} 17... Re7 {[%clk 0:02:30.8]} 18.
Qf2 {[%clk 0:01:49.9]} 18... Qxf2+ {[%clk 0:02:22.7]} 19. Kxf2 {[%clk
0:01:49.2]} 19... Rfe8 {[%clk 0:02:21.9]} 20. Re2 {[%clk 0:01:46.8]} 20... Bf6
{[%clk 0:02:17.7]} 21. g5 {[%clk 0:01:42]} 21... Bg7 {[%clk 0:02:16.9]} 22. Rfe1
{[%clk 0:01:40.8]} 22... b5 {[%clk 0:02:16]} 23. Kf3 {[%clk 0:01:33.7]} 23...
Nb6 {[%clk 0:02:12.7]} 24. b3 {[%clk 0:01:25.7]} 24... a5 {[%clk 0:02:08.5]} 25.
Nd1 {[%clk 0:01:18.9]} 25... a4 {[%clk 0:02:06.1]} 26. Rc2 {[%clk 0:01:13.1]}
26... axb3 {[%clk 0:01:55.5]} 27. axb3 {[%clk 0:01:14]} 27... Re6 {[%clk
0:01:54.8]} 28. f5 {[%clk 0:00:48.3]} 28... Rd6 {[%clk 0:01:53.7]} 29. Ree2
{[%clk 0:00:41]} 29... gxf5 {[%clk 0:01:41.1]} 30. Bxf5 {[%clk 0:00:40.2]} 30...
f6 {[%clk 0:01:40.8]} 31. h4 {[%clk 0:00:24.1]} 31... fxg5 {[%clk 0:01:39.9]}
32. hxg5 {[%clk 0:00:23.7]} 32... Nc8 {[%clk 0:01:32.2]} 33. Bxc8 {[%clk
0:00:21.8]} 33... Rxc8 {[%clk 0:01:30.8]} 34. Rh2 {[%clk 0:00:21.6]} 34... Rf8+
{[%clk 0:01:29.5]} 35. Ke2 {[%clk 0:00:20.5]} 35... Re6 {[%clk 0:01:28.4]} 36.
Nf2 {[%clk 0:00:19]} 36... Bxd4 {[%clk 0:01:26.1]} 37. Rh3 {[%clk 0:00:17.4]}
37... Rf5 {[%clk 0:01:16.8]} 38. Rg3 {[%clk 0:00:14.1]} 38... Bg7 {[%clk
0:01:12.1]} 39. Nd3 {[%clk 0:00:10.2]} 39... d4 {[%clk 0:01:09.7]} 40. Nc5
{[%clk 0:00:06.5]} 40... Rxe3+ {[%clk 0:01:03.8]} 41. Rxe3 {[%clk 0:00:07.4]}
41... dxe3 {[%clk 0:01:03.3]} 42. Kxe3 {[%clk 0:00:06.1]} 42... Rxg5 {[%clk
0:01:03.1]} 43. Ne4 {[%clk 0:00:04.9]} 43... Rg6 {[%clk 0:01:01.7]} 44. Kf4
{[%clk 0:00:05.1]} 44... h5 {[%clk 0:00:54.3]} 45. Rh2 {[%clk 0:00:03.9]} 45...
Bh6+ {[%clk 0:00:51.8]} 46. Kf5 {[%clk 0:00:04]} 46... Kg7 {[%clk 0:00:49.6]}
47. Rxh5 {[%clk 0:00:03.5]} 47... Be3 {[%clk 0:00:49]} 48. Rh3 {[%clk
0:00:03.2]} 48... Bd4 {[%clk 0:00:47.7]} 49. Rd3 {[%clk 0:00:03]} 49... c5
{[%clk 0:00:47.4]} 50. b4 {[%clk 0:00:03.5]} 50... Rc6 {[%clk 0:00:35.4]} 51.
bxc5 {[%clk 0:00:03.7]} 51... Bxc5 {[%clk 0:00:34.8]} 52. Rc3 {[%clk 0:00:03.4]}
52... b4 {[%clk 0:00:33.4]} 53. Rxc5 {[%clk 0:00:03.6]} 53... Rxc5+ {[%clk
0:00:33.3]} 54. Nxc5 {[%clk 0:00:04.5]} 54... b3 {[%clk 0:00:33.2]} 55. Nxb3
{[%clk 0:00:04.7]} 1/2-1/2

[Event "*** SCC Grand Prix: Titled Tuesday Blitz"]
[Site "Chess.com"]
[Date "2020.09.08"]
[Round "8"]
[White "MikaelyanArman"]
[Black "GasconJR"]
[Result "0-1"]
[WhiteElo "2741"]
[BlackElo "2599"]
[TimeControl "180+1"]
[EndTime "11:37:03 PDT"]
[Termination "GasconJR won on time"]

1. d4 {[%clk 0:03:00.9]} 1... f5 {[%clk 0:02:59]} 2. Nf3 {[%clk 0:02:59.2]} 2...
Nf6 {[%clk 0:02:58.9]} 3. g3 {[%clk 0:02:56.6]} 3... e6 {[%clk 0:02:58.9]} 4.
Bg2 {[%clk 0:02:57.1]} 4... d5 {[%clk 0:02:58.4]} 5. O-O {[%clk 0:02:57]} 5...
Bd6 {[%clk 0:02:58.2]} 6. c4 {[%clk 0:02:57.2]} 6... O-O {[%clk 0:02:57.5]} 7.
Nc3 {[%clk 0:02:54.9]} 7... c6 {[%clk 0:02:55.8]} 8. Bf4 {[%clk 0:02:48.8]} 8...
Bxf4 {[%clk 0:02:53]} 9. gxf4 {[%clk 0:02:49.7]} 9... dxc4 {[%clk 0:02:37.7]}
10. Ne5 {[%clk 0:02:41.1]} 10... Nd5 {[%clk 0:02:37]} 11. e3 {[%clk 0:02:39.4]}
11... b5 {[%clk 0:02:31.5]} 12. a4 {[%clk 0:02:37.6]} 12... b4 {[%clk
0:01:56.8]} 13. Nxd5 {[%clk 0:02:25.1]} 13... exd5 {[%clk 0:01:55.2]} 14. Kh1
{[%clk 0:02:22.3]} 14... a5 {[%clk 0:01:50.3]} 15. Rg1 {[%clk 0:02:18.1]} 15...
Ra7 {[%clk 0:01:47.3]} 16. Qh5 {[%clk 0:02:15.3]} 16... g6 {[%clk 0:01:23.3]}
17. Bf3 {[%clk 0:02:02.8]} 17... Rg7 {[%clk 0:01:21.7]} 18. Qh6 {[%clk
0:02:00.3]} 18... Qd6 {[%clk 0:00:54.7]} 19. Rg3 {[%clk 0:01:37.1]} 19... Nd7
{[%clk 0:00:53.7]} 20. Rag1 {[%clk 0:01:37.1]} 20... Nxe5 {[%clk 0:00:50.7]} 21.
fxe5 {[%clk 0:01:38]} 21... Qe7 {[%clk 0:00:46.1]} 22. h4 {[%clk 0:01:36]} 22...
f4 {[%clk 0:00:38.5]} 23. exf4 {[%clk 0:01:34.4]} 23... Qf7 {[%clk 0:00:37.1]}
24. h5 {[%clk 0:00:56.5]} 24... Qxf4 {[%clk 0:00:36]} 25. Qxf4 {[%clk
0:00:56.6]} 25... Rxf4 {[%clk 0:00:35.6]} 26. hxg6 {[%clk 0:00:57.5]} 26... hxg6
{[%clk 0:00:35.2]} 27. Re1 {[%clk 0:00:44]} 27... Be6 {[%clk 0:00:29.8]} 28. Rd1
{[%clk 0:00:39.3]} 28... Bf5 {[%clk 0:00:29.8]} 29. Kg2 {[%clk 0:00:36.7]} 29...
c3 {[%clk 0:00:25.9]} 30. bxc3 {[%clk 0:00:36]} 30... bxc3 {[%clk 0:00:26.8]}
31. Be2 {[%clk 0:00:33.9]} 31... c2 {[%clk 0:00:26.3]} 32. Rc1 {[%clk
0:00:34.1]} 32... Rb7 {[%clk 0:00:21.5]} 33. Rc3 {[%clk 0:00:32]} 33... Rxd4
{[%clk 0:00:13.4]} 34. Rxc6 {[%clk 0:00:29]} 34... Rd2 {[%clk 0:00:12]} 35. Bb5
{[%clk 0:00:27.5]} 35... d4 {[%clk 0:00:08.9]} 36. e6 {[%clk 0:00:26.9]} 36...
d3 {[%clk 0:00:07.4]} 37. Rc8+ {[%clk 0:00:08.7]} 37... Kg7 {[%clk 0:00:06.8]}
38. Bd7 {[%clk 0:00:09.2]} 38... Rd1 {[%clk 0:00:04.7]} 39. e7 {[%clk
0:00:02.9]} 39... Bxd7 {[%clk 0:00:04.1]} 40. Rd8 {[%clk 0:00:01.7]} 40... Rxc1
{[%clk 0:00:03.3]} 41. Rxd7 {[%clk 0:00:02]} 41... Rxd7 {[%clk 0:00:04]} 42.
e8=Q {[%clk 0:00:02.2]} 42... Rg1+ {[%clk 0:00:04.6]} 43. Kf3 {[%clk 0:00:01.9]}
43... Rf7+ {[%clk 0:00:04.6]} 44. Ke4 {[%clk 0:00:01.3]} 44... Re1+ {[%clk
0:00:04.5]} 0-1

[Event "*** SCC Grand Prix: Titled Tuesday Blitz"]
[Site "Chess.com"]
[Date "2020.09.08"]
[Round "8"]
[White "Olga_Girya"]
[Black "MariaFominykh"]
[Result "1-0"]
[WhiteElo "2492"]
[BlackElo "2350"]
[TimeControl "180+1"]
[EndTime "11:37:06 PDT"]
[Termination "Olga_Girya won on time"]

1. d4 {[%clk 0:03:00.9]} 1... d6 {[%clk 0:02:59.3]} 2. Nf3 {[%clk 0:03:00]} 2...
Nf6 {[%clk 0:02:58.9]} 3. c4 {[%clk 0:02:54.4]} 3... Nbd7 {[%clk 0:02:57]} 4.
Nc3 {[%clk 0:02:53.9]} 4... e5 {[%clk 0:02:56.8]} 5. e4 {[%clk 0:02:54.1]} 5...
g6 {[%clk 0:02:48.4]} 6. Be2 {[%clk 0:02:53.4]} 6... Bg7 {[%clk 0:02:48.4]} 7.
O-O {[%clk 0:02:53]} 7... O-O {[%clk 0:02:48.9]} 8. Be3 {[%clk 0:02:52.9]} 8...
Ng4 {[%clk 0:02:47.7]} 9. Bg5 {[%clk 0:02:50.3]} 9... f6 {[%clk 0:02:47.7]} 10.
Bh4 {[%clk 0:02:49.2]} 10... g5 {[%clk 0:02:46]} 11. Bg3 {[%clk 0:02:49]} 11...
Nh6 {[%clk 0:02:39.9]} 12. Qd2 {[%clk 0:02:13.2]} 12... Nf7 {[%clk 0:02:01.4]}
13. Rad1 {[%clk 0:01:57.4]} 13... h5 {[%clk 0:01:25.2]} 14. h3 {[%clk
0:01:47.3]} 14... Bh6 {[%clk 0:01:16.3]} 15. Qc2 {[%clk 0:01:42.3]} 15... Nh8
{[%clk 0:00:38]} 16. c5 {[%clk 0:01:36]} 16... dxc5 {[%clk 0:00:28.6]} 17. dxe5
{[%clk 0:01:31.4]} 17... g4 {[%clk 0:00:25.5]} 18. hxg4 {[%clk 0:01:29.2]} 18...
hxg4 {[%clk 0:00:25.6]} 19. e6 {[%clk 0:01:14.4]} 19... gxf3 {[%clk 0:00:24.4]}
20. Bxf3 {[%clk 0:01:14.7]} 20... Qe8 {[%clk 0:00:19]} 21. exd7 {[%clk
0:01:11.5]} 21... Bxd7 {[%clk 0:00:19.9]} 22. Nd5 {[%clk 0:01:09.1]} 22... c6
{[%clk 0:00:15.7]} 23. Nc7 {[%clk 0:01:08.6]} 23... Qf7 {[%clk 0:00:15.1]} 24.
Nxa8 {[%clk 0:01:02]} 24... Rxa8 {[%clk 0:00:16]} 25. e5 {[%clk 0:00:59.7]}
25... f5 {[%clk 0:00:13]} 26. Rd6 {[%clk 0:00:53.5]} 26... Be6 {[%clk
0:00:12.9]} 27. Rfd1 {[%clk 0:00:50.5]} 27... Bf8 {[%clk 0:00:12.3]} 28. Rd8
{[%clk 0:00:50.5]} 28... Rxd8 {[%clk 0:00:11.6]} 29. Rxd8 {[%clk 0:00:51.2]}
29... Ng6 {[%clk 0:00:11.6]} 30. Qd2 {[%clk 0:00:50.5]} 30... f4 {[%clk
0:00:11.6]} 31. Bh2 {[%clk 0:00:37.6]} 31... Kg7 {[%clk 0:00:11.7]} 32. Be4
{[%clk 0:00:33.8]} 32... Be7 {[%clk 0:00:11.2]} 33. Rb8 {[%clk 0:00:28.6]} 33...
Bg5 {[%clk 0:00:10.9]} 34. Qd6 {[%clk 0:00:14.3]} 34... Be7 {[%clk 0:00:07.1]}
35. Bxg6 {[%clk 0:00:12.7]} 35... Kxg6 {[%clk 0:00:05.5]} 36. Qd3+ {[%clk
0:00:12.2]} 36... Bf5 {[%clk 0:00:05.4]} 37. Qf3 {[%clk 0:00:12.3]} 37... Qd5
{[%clk 0:00:03.8]} 38. Qxd5 {[%clk 0:00:11.7]} 38... cxd5 {[%clk 0:00:04.1]} 39.
Rxb7 {[%clk 0:00:11.6]} 39... Bg5 {[%clk 0:00:04.1]} 40. Rxa7 {[%clk 0:00:11]}
40... d4 {[%clk 0:00:03.3]} 41. Kf1 {[%clk 0:00:09.1]} 41... Bd3+ {[%clk
0:00:02.1]} 42. Ke1 {[%clk 0:00:08.7]} 42... Bc4 {[%clk 0:00:02.3]} 43. b3
{[%clk 0:00:08.2]} 43... Bd5 {[%clk 0:00:02.3]} 44. f3 {[%clk 0:00:06.7]} 44...
d3 {[%clk 0:00:02.1]} 45. Rc7 {[%clk 0:00:06.7]} 1-0